fUSD/lending_fUSD_20250123
["ID","MTS","AMOUNT","RATE_DAILY","PERIOD"]
[350174555,1737671451999,-813.39,0.00017258,2]
[350174557,1737671452008,-634.95,0.00017258,2]
[350174559,1737671452018,-500.0,0.00017258,2]
[350174561,1737671452027,-500.0,0.00017258,2]
[350174563,1737671452037,-500.0,0.00017258,2]
[350174565,1737671452046,-500.0,0.00017258,2]
[350174567,1737671452056,-500.0,0.00017258,2]
[350174569,1737671452065,-1569.07,0.00017258,2]
[350174571,1737671452080,-530.54,0.00017258,2]
[350174573,1737671452090,-500.0,0.00017258,2]
[350174575,1737671452100,-500.0,0.00017258,2]
[350174578,1737671452111,-500.0,0.00017258,2]
[350174580,1737671452120,-500.0,0.00017258,2]
[350174582,1737671452130,-500.0,0.00017258,2]
[350174584,1737671452139,-525.63,0.00017258,2]
[350174585,1737671452149,-940.88,0.00017258,2]
[350174588,1737671452159,-500.0,0.00017258,2]
[350174589,1737671452168,-500.0,0.00017258,2]
[350174591,1737671452178,-500.0,0.00017258,2]
[350174593,1737671452187,-541.81,0.00017258,2]
[350174595,1737671452197,-561.8,0.00017258,2]
[350174598,1737671452206,-792.44,0.00017258,2]
[350174599,1737671452216,-500.0,0.00017258,2]
[350174616,1737671452356,-500.0,0.00017258,2]
[350174618,1737671452367,-500.0,0.00017258,2]
[350174620,1737671452377,-521.99,0.00017258,2]
[350174622,1737671452386,-500.0,0.00017258,2]
[350174624,1737671452394,-500.0,0.00017258,2]
[350174626,1737671452404,-500.0,0.00017258,2]
[350174628,1737671452413,-566.39,0.00017258,2]
[350174630,1737671452422,-1476.86,0.00017258,2]
[350174632,1737671452431,-500.0,0.00017258,2]
[350174634,1737671452441,-1216.88,0.00017258,2]
[350174636,1737671452450,-740.41,0.00017258,2]
[350174638,1737671452459,-500.0,0.00017258,2]
[350174639,1737671452468,-522.36,0.00017258,2]
[350174641,1737671452478,-2870.31,0.00017258,2]
[350174643,1737671452487,-1151.97,0.00017258,2]
[350174646,1737671452497,-500.0,0.00017258,2]
[350174647,1737671452506,-500.0,0.00017258,2]
[350174649,1737671452516,-500.0,0.00017258,2]
[350174651,1737671452525,-500.0,0.00017258,2]
[350174654,1737671452535,-151.0,0.00017258,2]
[350174656,1737671452545,-636.99,0.00017258,2]
[350174658,1737671452554,-500.0,0.00017258,2]
[350174660,1737671452563,-500.0,0.00017258,2]
[350174662,1737671452573,-410.35002655,0.00017259,2]
[350174664,1737671452583,-500.0,0.00017259,2]
[350174666,1737671452593,-500.0,0.00017259,2]
[350174668,1737671452603,-500.0,0.00017259,2]
[350174670,1737671452612,-151.0,0.00017259,2]
[350174672,1737671452620,-151.0,0.00017259,2]
[350174674,1737671452630,-151.0,0.00017259,2]
[350174676,1737671452639,-152.638543,0.00017259,2]
[350174678,1737671452649,-151.0,0.00017259,2]
[350174680,1737671452659,-151.0,0.00017259,2]
[350174682,1737671452668,-151.0,0.00017259,2]
[350174684,1737671452677,-151.0,0.00017259,2]
[350174686,1737671452687,-151.0,0.00017259,2]
[350174688,1737671452697,-1000.0,0.00017318,2]
[350174690,1737671452707,-151.0,0.0001732,2]
[350174692,1737671452716,-151.0,0.0001732,2]
[350174694,1737671452725,-151.0,0.0001732,2]
[350174696,1737671452734,-714.232249,0.0001732,2]
[350174698,1737671452744,-714.232249,0.0001732,2]
[350174700,1737671452754,-151.0,0.0001732,2]
[350174702,1737671452764,-151.0,0.0001732,2]
[350174704,1737671452773,-2569.468351,0.0001732,2]
[350174706,1737671452782,-171.11,0.00017396,2]
[350174708,1737671452792,-1221.0,0.000174,2]
[350174710,1737671452801,-323.427995,0.000174,2]
[350174712,1737671452810,-323.427995,0.000174,2]
[350174714,1737671452819,-151.0,0.000174,2]
[350174716,1737671452828,-151.0,0.000174,2]
[350174718,1737671452838,-151.0,0.000174,2]
[350174720,1737671452848,-7713.92411087,0.00017406,2]
[350174722,1737671452857,-1017.48239621,0.00017417,2]
[350174724,1737671452867,-151.0,0.00017431,2]
[350174726,1737671452876,-500.0,0.00017431,2]
[350174727,1737671452885,-500.0,0.00017431,2]
[350174729,1737671452894,-500.0,0.00017431,2]
[350174732,1737671452904,-500.0,0.00017431,2]
[350174733,1737671452913,-500.0,0.00017431,2]
[350174735,1737671452922,-500.0,0.00017431,2]
[350174737,1737671452931,-500.0,0.00017431,2]
[350174739,1737671452941,-500.0,0.00017431,2]
[350174742,1737671452951,-500.0,0.00017431,2]
[350174744,1737671452961,-500.0,0.00017431,2]
[350174746,1737671452971,-500.0,0.00017431,2]
[350174748,1737671452980,-500.0,0.00017431,2]
[350174750,1737671452989,-500.0,0.00017431,2]
[350174752,1737671452998,-500.0,0.00017431,2]
[350174754,1737671453008,-500.0,0.00017431,2]
[350174756,1737671453017,-500.0,0.00017431,2]
[350174758,1737671453027,-176.57192052,0.00017431,2]
[350174760,1737671453036,-500.0,0.00017431,2]
[350174761,1737671453045,-541.62590011,0.00017431,2]
[350174763,1737671453055,-500.0,0.00017431,2]
[350174766,1737671453065,-500.0,0.00017431,2]
[350174767,1737671453076,-500.0,0.00017431,2]
[350174769,1737671453087,-500.0,0.00017431,2]
[350174772,1737671453097,-257.80017029,0.00017431,2]
[350174774,1737671453106,-500.0,0.00017431,2]
[350174775,1737671453117,-500.0,0.00017431,2]
[350174777,1737671453127,-500.0,0.00017431,2]
[350174780,1737671453137,-533.99,0.00017431,2]
[350174782,1737671453147,-600.3,0.00017431,2]
[350174784,1737671453159,-151.0,0.00017431,2]
[350174786,1737671453168,-151.0,0.00017431,2]
[350174788,1737671453177,-151.0,0.00017431,2]
[350174789,1737671453187,-151.0,0.00017431,2]
[350174791,1737671453196,-515.161535,0.00017431,2]
[350174794,1737671453205,-515.161535,0.00017431,2]
[350174796,1737671453216,-151.0,0.00017431,2]
[350174798,1737671453225,-679.470535,0.00017431,2]
[350174800,1737671453234,-151.0,0.00017431,2]
[350174802,1737671453244,-679.470535,0.00017431,2]
[350174804,1737671453254,-353.81,0.00017444,2]
[350174805,1737671453264,-151.0,0.00017474,2]
[350174806,1737671453274,-151.0,0.00017474,2]
[350174807,1737671453283,-235.686216,0.00017474,2]
[350174808,1737671453292,-958.596042,0.00017474,2]
[350174809,1737671453302,-286.271057,0.00017474,2]
[350174810,1737671453311,-286.271057,0.00017474,2]
[350174811,1737671453320,-314.85194405,0.00017506,2]
[350174812,1737671453330,-500.0,0.00017529,2]
[350174814,1737671453341,-500.0,0.00017529,2]
[350174816,1737671453350,-500.0,0.00017529,2]
[350174818,1737671453359,-500.0,0.00017529,2]
[350174819,1737671453369,-500.0,0.00017529,2]
[350174822,1737671453378,-500.0,0.00017529,2]
[350174823,1737671453387,-500.0,0.00017529,2]
[350174825,1737671453397,-500.0,0.00017529,2]
[350174827,1737671453407,-500.0,0.00017529,2]
[350174830,1737671453417,-216.5256064,0.00017529,2]
[350174832,1737671453427,-500.0,0.00017529,2]
[350174833,1737671453437,-500.0,0.00017529,2]
[350174835,1737671453446,-500.0,0.00017529,2]
[350174838,1737671453456,-500.0,0.00017529,2]
[350174839,1737671453466,-505.71336928,0.00017529,2]
[350174841,1737671453476,-500.0,0.00017529,2]
[350174843,1737671453485,-500.0,0.00017529,2]
[350174845,1737671453495,-517.53324149,0.00017529,2]
[350174847,1737671453504,-500.0,0.00017529,2]
[350174849,1737671453514,-500.0,0.00017529,2]
[350174851,1737671453523,-500.0,0.00017529,2]
[350174853,1737671453533,-500.0,0.00017529,2]
[350174855,1737671453542,-270.47706913,0.00017529,2]
[350174857,1737671453551,-500.0,0.00017529,2]
[350174859,1737671453561,-500.0,0.00017529,2]
[350174862,1737671453571,-500.0,0.00017529,2]
[350174863,1737671453580,-500.0,0.00017529,2]
[350174865,1737671453592,-500.0,0.00017529,2]
[350174867,1737671453601,-500.0,0.00017529,2]
[350174869,1737671453610,-500.0,0.00017529,2]
[350174871,1737671453620,-500.0,0.00017529,2]
[350174873,1737671453628,-500.0,0.00017529,2]
[350174875,1737671453638,-500.0,0.00017529,2]
[350174877,1737671453647,-500.0,0.00017529,2]
[350174879,1737671453656,-595.13,0.00017529,2]
[350174881,1737671453665,-500.0,0.00017529,2]
[350174883,1737671453675,-500.0,0.00017529,2]
[350174884,1737671453684,-500.0,0.00017529,2]
[350174885,1737671453693,-500.0,0.00017529,2]
[350174886,1737671453703,-282.27523107,0.00017529,2]
[350174887,1737671453713,-500.0,0.00017529,2]
[350174888,1737671453723,-500.0,0.00017529,2]
[350174889,1737671453732,-500.0,0.00017529,2]
[350174890,1737671453742,-500.0,0.00017529,2]
[350174891,1737671453751,-541.33664023,0.00017529,2]
[350174892,1737671453761,-518.75,0.00017529,2]
[350174893,1737671453771,-500.0,0.00017529,2]
[350174894,1737671453781,-500.0,0.00017529,2]
[350174895,1737671453791,-715.94,0.00017529,2]
[350174896,1737671453801,-151.0,0.00017529,2]
[350174897,1737671453810,-821.36,0.00017529,2]
[350174898,1737671453820,-516.70881309,0.00017529,2]
[350174899,1737671453830,-500.0,0.00017529,2]
[350174900,1737671453841,-500.0,0.00017529,2]
[350174901,1737671453850,-1000.0,0.00017529,2]
[350174902,1737671453860,-186.98900626,0.00017529,2]
[350174903,1737671453869,-151.0,0.00017529,2]
[350174904,1737671453879,-636.63,0.00017529,2]
[350174905,1737671453888,-500.0,0.00017529,2]
[350174906,1737671453897,-177.223818,0.00017529,2]
[350174907,1737671453906,-177.223818,0.00017529,2]
[350174908,1737671453916,-151.0,0.00017529,2]
[350174909,1737671453926,-930.69,0.00017529,2]
[350174910,1737671453935,-151.0,0.00017529,2]
[350174911,1737671453944,-500.0,0.00017529,2]
[350174912,1737671453953,-905.13,0.00017529,2]
[350174913,1737671453962,-500.0,0.00017529,2]
[350174914,1737671453972,-500.0,0.00017529,2]
[350174915,1737671453981,-500.0,0.00017529,2]
[350174916,1737671453990,-500.0,0.00017529,2]
[350174917,1737671454000,-500.0,0.00017529,2]
[350174918,1737671454010,-500.0,0.00017529,2]
[350174919,1737671454019,-500.0,0.00017529,2]
[350174920,1737671454028,-500.0,0.00017529,2]
[350174921,1737671454037,-500.0,0.00017529,2]
[350174922,1737671454048,-500.0,0.00017529,2]
[350174923,1737671454058,-500.0,0.00017529,2]
[350174924,1737671454068,-288.53563759,0.00017529,2]
[350174925,1737671454080,-500.0,0.00017531,2]
[350174926,1737671454091,-500.0,0.00017531,2]
[350174927,1737671454101,-389.96379659,0.00017531,2]
[350174928,1737671454111,-500.0,0.00017531,2]
[350174929,1737671454121,-883.62,0.00017531,2]
[350174930,1737671454130,-963.12,0.00017531,2]
[350174931,1737671454141,-500.0,0.00017531,2]
[350174932,1737671454151,-758.27,0.00017531,2]
[350174933,1737671454160,-500.0,0.00017531,2]
[350174934,1737671454170,-971.03,0.00017531,2]
[350174935,1737671454180,-527.48,0.00017531,2]
[350174936,1737671454189,-500.0,0.00017531,2]
[350174937,1737671454199,-1098.76,0.00017531,2]
[350174938,1737671454209,-500.0,0.00017531,2]
[350174939,1737671454219,-984.16,0.00017531,2]
[350174940,1737671454229,-500.0,0.00017531,2]
[350174941,1737671454239,-500.0,0.00017531,2]
[350174942,1737671454248,-1143.53,0.00017531,2]
[350174943,1737671454258,-793.59,0.00017531,2]
[350174944,1737671454267,-500.0,0.00017531,2]
[350174945,1737671454277,-572.82,0.00017531,2]
[350174946,1737671454287,-838.92,0.00017531,2]
[350174947,1737671454296,-500.0,0.00017531,2]
[350174948,1737671454306,-500.0,0.00017532,2]
[350174949,1737671454315,-500.0,0.00017532,2]
[350174950,1737671454325,-500.0,0.00017532,2]
[350174951,1737671454335,-500.0,0.00017532,2]
[350174952,1737671454345,-500.0,0.00017532,2]
[350174953,1737671454355,-500.0,0.00017532,2]
[350174954,1737671454364,-500.0,0.00017532,2]
[350174955,1737671454374,-500.0,0.00017532,2]
[350174956,1737671454384,-500.0,0.00017532,2]
[350174957,1737671454394,-500.0,0.00017532,2]
[350174958,1737671454403,-500.0,0.00017532,2]
[350174959,1737671454412,-500.0,0.00017532,2]
[350174960,1737671454422,-500.0,0.00017532,2]
[350174961,1737671454431,-500.0,0.00017532,2]
[350174962,1737671454441,-500.0,0.00017532,2]
[350174963,1737671454451,-500.0,0.00017532,2]
[350174964,1737671454460,-500.0,0.00017532,2]
[350174965,1737671454470,-500.0,0.00017532,2]
[350174966,1737671454479,-500.0,0.00017532,2]
[350174967,1737671454489,-500.0,0.00017532,2]
[350174968,1737671454499,-601.05435248,0.00017532,2]
[350174969,1737671454508,-500.0,0.00017532,2]
[350174970,1737671454518,-500.0,0.00017532,2]
[350174971,1737671454528,-500.0,0.00017532,2]
[350174972,1737671454537,-500.0,0.00017532,2]
[350174973,1737671454547,-500.0,0.00017532,2]
[350174974,1737671454556,-500.0,0.00017532,2]
[350174975,1737671454566,-500.0,0.00017532,2]
[350174976,1737671454574,-500.0,0.00017532,2]
[350174977,1737671454583,-151.0,0.00017532,2]
[350174978,1737671454595,-500.0,0.00017532,2]
[350174979,1737671454604,-500.0,0.00017532,2]
[350174980,1737671454613,-500.0,0.00017532,2]
[350174981,1737671454622,-221.0049,0.00017532,2]
[350174982,1737671454632,-297.21,0.00017532,2]
[350174983,1737671454642,-500.0,0.00017532,2]
[350174984,1737671454651,-500.0,0.00017532,2]
[350174985,1737671454661,-500.0,0.00017532,2]
[350174986,1737671454670,-500.0,0.00017532,2]
[350174987,1737671454679,-500.0,0.00017532,2]
[350174988,1737671454689,-1051.46625,0.00017532,2]
[350174989,1737671454698,-268.937308,0.00017532,2]
[350174990,1737671454707,-1051.46625,0.00017532,2]
[350174991,1737671454717,-268.937308,0.00017532,2]
[350174992,1737671454726,-500.0,0.00017532,2]
[350174993,1737671454735,-500.0,0.00017532,2]
[350174994,1737671454745,-500.0,0.00017532,2]
[350174995,1737671454755,-500.0,0.00017532,2]
[350174996,1737671454765,-500.0,0.00017532,2]
[350174997,1737671454775,-151.0,0.00017532,2]
[350174998,1737671454785,-500.0,0.00017532,2]
[350174999,1737671454794,-151.0,0.00017532,2]
[350175000,1737671454804,-500.0,0.00017532,2]
[350175001,1737671454814,-151.0,0.00017532,2]
[350175002,1737671454824,-500.0,0.00017532,2]
[350175003,1737671454837,-528.1,0.00017532,2]
[350175004,1737671454847,-500.0,0.00017532,2]
[350175005,1737671454857,-151.0,0.00017532,2]
[350175006,1737671454868,-500.0,0.00017532,2]
[350175007,1737671454879,-500.0,0.00017532,2]
[350175008,1737671454889,-210.048319,0.00017532,2]
[350175009,1737671454899,-1974.46,0.00017532,2]
[350175010,1737671454909,-491.124702,0.00017532,2]
[350175011,1737671454919,-151.0,0.00017532,2]
[350175012,1737671454929,-2285.71,0.00017532,2]
[350175013,1737671454939,-491.124702,0.00017532,2]
[350175014,1737671454948,-151.0,0.00017532,2]
[350175015,1737671454958,-791.98,0.00017532,2]
[350175016,1737671454969,-500.0,0.00017532,2]
[350175017,1737671454979,-999.12,0.00017532,2]
[350175018,1737671454989,-500.0,0.00017532,2]
[350175019,1737671454999,-583.87,0.00017532,2]
[350175020,1737671455009,-151.0,0.00017532,2]
[350175021,1737671455143,-1408.9,0.00017532,2]
[350175022,1737671455154,-151.0,0.00017532,2]
[350175023,1737671455165,-500.0,0.00017532,2]
[350175024,1737671455175,-157.744047,0.00017532,2]
[350175025,1737671455185,-500.0,0.00017532,2]
[350175026,1737671455195,-1006.76,0.00017532,2]
[350175027,1737671455204,-500.0,0.00017532,2]
[350175028,1737671455214,-607.89,0.00017532,2]
[350175029,1737671455224,-500.0,0.00017532,2]
[350175030,1737671455234,-500.0,0.00017532,2]
[350175031,1737671455243,-700.2,0.00017532,2]
[350175032,1737671455253,-668.89,0.00017532,2]
[350175033,1737671455262,-500.0,0.00017532,2]
[350175034,1737671455272,-500.0,0.00017532,2]
[350175035,1737671455282,-500.0,0.00017532,2]
[350175036,1737671455291,-2016.41,0.00017532,2]
[350175037,1737671455301,-370.64867689,0.00017532,2]
[350175038,1737671455310,-500.0,0.00017532,2]
[350175039,1737671455320,-1754.95,0.00017532,2]
[350175040,1737671455330,-769.59,0.00017532,2]
[350175041,1737671455340,-500.0,0.00017532,2]
[350175042,1737671455350,-1474.19,0.00017532,2]
[350175043,1737671455359,-1196.47,0.00017532,2]
[350175044,1737671455369,-731.21,0.00017532,2]
[350175045,1737671455379,-1521.91,0.00017532,2]
[350175046,1737671455389,-500.0,0.00017532,2]
[350175047,1737671455401,-1151.04,0.00017532,2]
[350175048,1737671455411,-500.0,0.00017532,2]
[350175049,1737671455420,-500.0,0.00017532,2]
[350175050,1737671455430,-1358.77,0.00017532,2]
[350175051,1737671455440,-903.77,0.00017532,2]
[350175052,1737671455449,-500.0,0.00017532,2]
[350175053,1737671455459,-500.0,0.00017532,2]
[350175054,1737671455468,-500.0,0.00017532,2]
[350175055,1737671455477,-500.0,0.00017532,2]
[350175056,1737671455487,-500.0,0.00017532,2]
[350175057,1737671455497,-728.8,0.00017532,2]
[350175058,1737671455508,-500.0,0.00017532,2]
[350175059,1737671455517,-2383.33,0.00017532,2]
[350175060,1737671455526,-813.39,0.00017532,2]
[350175061,1737671455536,-634.95,0.00017532,2]
[350175062,1737671455546,-500.0,0.00017532,2]
[350175063,1737671455555,-500.0,0.00017532,2]
[350175064,1737671455565,-500.0,0.00017532,2]
[350175065,1737671455575,-189.48,0.00017532,2]
[350175066,1737671455584,-500.0,0.00017532,2]
[350175067,1737671455594,-1569.07,0.00017532,2]
[350175068,1737671455603,-530.54,0.00017532,2]
[350175069,1737671455613,-500.0,0.00017532,2]
[350175070,1737671455622,-500.0,0.00017532,2]
[350175071,1737671455632,-500.0,0.00017532,2]
[350175072,1737671455641,-500.0,0.00017532,2]
[350175073,1737671455650,-500.0,0.00017532,2]
[350175074,1737671455660,-525.63,0.00017532,2]
[350175075,1737671455670,-940.88,0.00017532,2]
[350175076,1737671455680,-500.0,0.00017532,2]
[350175077,1737671455690,-500.0,0.00017532,2]
[350175078,1737671455700,-500.0,0.00017532,2]
[350175079,1737671455710,-541.81,0.00017532,2]
[350175080,1737671455719,-561.8,0.00017532,2]
[350175081,1737671455729,-792.44,0.00017532,2]
[350175082,1737671455739,-216.45644759,0.00017532,2]
[350175083,1737671455749,-500.0,0.00017532,2]
[350175084,1737671455758,-500.0,0.00017532,2]
[350175085,1737671455768,-521.99,0.00017532,2]
[350175086,1737671455778,-500.0,0.00017532,2]
[350175087,1737671455788,-370.33,0.00017532,2]
[350175088,1737671455798,-500.0,0.00017532,2]
[350175089,1737671455807,-566.39,0.00017532,2]
[350175090,1737671455817,-1476.86,0.00017532,2]
[350175091,1737671455827,-500.0,0.00017532,2]
[350175092,1737671455837,-1216.88,0.00017532,2]
[350175093,1737671455847,-740.41,0.00017532,2]
[350175094,1737671455856,-500.0,0.00017532,2]
[350175095,1737671455866,-522.36,0.00017532,2]
[350175096,1737671455876,-2870.31,0.00017532,2]
[350175097,1737671455886,-1151.97,0.00017532,2]
[350175098,1737671455896,-500.0,0.00017532,2]
[350175099,1737671455905,-500.0,0.00017532,2]
[350175100,1737671455915,-500.0,0.00017532,2]
[350175101,1737671455925,-151.0,0.00017532,2]
[350175102,1737671455934,-636.99,0.00017532,2]
[350175103,1737671455944,-500.0,0.00017532,2]
[350175104,1737671455954,-500.0,0.00017532,2]
[350175105,1737671455964,-151.0,0.00017533,2]
[350175106,1737671455974,-151.0,0.00017533,2]
[350175107,1737671455984,-151.0,0.00017533,2]
[350175108,1737671455993,-151.0,0.00017533,2]
[350175109,1737671456003,-422.73433541,0.00017533,2]
[350175110,1737671456013,-500.0,0.00017533,2]
[350175111,1737671456022,-500.0,0.00017533,2]
[350175112,1737671456031,-151.0,0.00017533,2]
[350175113,1737671456040,-151.0,0.00017533,2]
[350175114,1737671456050,-151.0,0.00017533,2]
[350175115,1737671456059,-151.0,0.00017533,2]
[350175116,1737671456069,-151.0,0.00017533,2]
[350175117,1737671456083,-151.0,0.00017533,2]
[350175118,1737671456093,-714.232249,0.00017533,2]
[350175119,1737671456102,-714.232249,0.00017533,2]
[350175120,1737671456112,-151.0,0.00017533,2]
[350175121,1737671456122,-151.0,0.00017533,2]
[350175122,1737671456132,-2569.468351,0.00017533,2]
[350175123,1737671456142,-1017.48239621,0.0001759,2]
[350175124,1737671456152,-196.64786078,0.00017596,2]
[350175125,1737671456162,-151.0,0.00017606,2]
[350175126,1737671456171,-151.0,0.00017606,2]
[350175127,1737671456181,-714.232249,0.00017606,2]
[350175128,1737671456190,-714.232249,0.00017606,2]
[350175129,1737671456199,-151.0,0.00017606,2]
[350175130,1737671456209,-151.0,0.00017606,2]
[350175131,1737671456218,-151.0,0.00017606,2]
[350175132,1737671456227,-2569.468351,0.00017606,2]
[350175133,1737671456237,-217532.3803331,0.00017606,2]
[350175134,1737671456447,-52025.0,0.00017606,2]
[350175135,1737671456467,-67541.60493323,0.00017606,2]
[350175136,1737671456478,-3286.53985801,0.00017606,2]
[350175137,1737671456489,-825.8,0.00017606,2]
[350175138,1737671456500,-3306.44260815,0.00017606,2]
[350175141,1737672098478,155.66,0.00016658,30]
[350175250,1737672387850,354.34,0.00010137,2]
[350175257,1737672631648,-641.66,0.00014063,2]
[350175258,1737672631658,-550.0,0.00015,2]
[350175259,1737672631667,-1500.0,0.00015635,2]
[350175260,1737672631676,-1000.0,0.00015635,2]
[350175261,1737672631685,-548.23,0.00015679,2]
[350175262,1737672631695,-504.29,0.0001583,2]
[350175263,1737672631704,-250.0,0.0001586,2]
[350175264,1737672631713,-186.99144945,0.00015881,2]
[350175265,1737672631723,-679.16,0.00015964,2]
[350175266,1737672631732,-250.0,0.0001598,2]
[350175267,1737672631741,-215.23,0.00015996,2]
[350175268,1737672631750,-1396.81,0.00016031,2]
[350175269,1737672631759,-181.61,0.00016236,2]
[350175270,1737672631769,-641.66,0.00016327,2]
[350175271,1737672631778,-250.0,0.0001637,2]
[350175272,1737672631787,-150.0,0.00016408,2]
[350175273,1737672631797,-794.1203267,0.00016483,2]
[350175274,1737672631806,-186.99144944,0.00016483,2]
[350175275,1737672631815,-5976.05234869,0.0001651,2]
[350175276,1737672631825,-25864.23666574,0.00016541,2]
[350175277,1737672631842,-10654.0,0.00016541,2]
[350175278,1737672631892,-2310.14988369,0.00016541,2]
[350175279,1737672631903,-281.4965675,0.00016541,2]
[350175280,1737672631914,-11390.11688307,0.00016541,2]
[350175281,1737672631924,-410.75229603,0.00016568,2]
[350175282,1737672631933,-788.07438058,0.0001657,2]
[350175283,1737672631942,-200.92111367,0.00016571,2]
[350175284,1737672631952,-298.1,0.00016578,2]
[350175285,1737672631961,-298.1,0.00016578,2]
[350175286,1737672631971,-518.89,0.00016578,2]
[350175287,1737672631980,-17832.69602232,0.00016583,2]
[350175288,1737672631993,-2167.30397768,0.00016583,2]
[350175289,1737672632002,-788.07438058,0.00016595,2]
[350175290,1737672632011,-200.92111367,0.00016597,2]
[350175291,1737672632020,-788.07438058,0.00016608,2]
[350175292,1737672632029,-76660.2451,0.0001661,2]
[350175293,1737672632038,-251.9837142,0.0001661,2]
[350175294,1737672632046,-410.75229603,0.00016615,2]
[350175295,1737672632056,-200.0,0.00016648,2]
[350175296,1737672632065,-410.75229603,0.00016659,2]
[350175297,1737672632075,-200.0,0.00016663,2]
[350175298,1737672632084,-200.92111367,0.00016665,2]
[350175299,1737672632094,-200.0,0.00016667,2]
[350175300,1737672632103,-788.07438058,0.00016668,2]
[350175301,1737672632112,-410.75229603,0.00016686,2]
[350175302,1737672632121,-410.75229603,0.00016687,2]
[350175303,1737672632131,-200.92111367,0.00016688,2]
[350175304,1737672632140,-788.07438058,0.00016692,2]
[350175305,1737672632150,-200.92111367,0.00016696,2]
[350175306,1737672632159,-733.59,0.00016698,2]
[350175308,1737672632169,-500.0,0.00016707,2]
[350175310,1737672632178,-820.34,0.00016707,2]
[350175312,1737672632187,-975.29,0.00016707,2]
[350175314,1737672632196,-500.0,0.00016707,2]
[350175315,1737672632205,-680.33,0.00016707,2]
[350175316,1737672632215,-500.0,0.00016707,2]
[350175317,1737672632224,-500.0,0.00016707,2]
[350175318,1737672632233,-500.0,0.00016707,2]
[350175319,1737672632242,-500.0,0.00016707,2]
[350175320,1737672632251,-529.76,0.00016707,2]
[350175321,1737672632261,-1001.28,0.00016707,2]
[350175333,1737672632441,-500.0,0.00016707,2]
[350175334,1737672632453,-500.0,0.00016707,2]
[350175336,1737672632462,-953.92,0.00016707,2]
[350175338,1737672632474,-500.0,0.00016707,2]
[350175340,1737672632483,-500.0,0.00016707,2]
[350175342,1737672632493,-500.0,0.00016707,2]
[350175344,1737672632502,-500.0,0.00016707,2]
[350175346,1737672632512,-500.0,0.00016707,2]
[350175348,1737672632523,-713.74,0.00016707,2]
[350175350,1737672632531,-903.21,0.00016707,2]
[350175352,1737672632540,-500.0,0.00016707,2]
[350175354,1737672632549,-500.0,0.00016707,2]
[350175356,1737672632558,-500.0,0.00016707,2]
[350175358,1737672632567,-500.0,0.00016707,2]
[350175360,1737672632576,-1009.84,0.00016707,2]
[350175362,1737672632585,-799.07,0.00016707,2]
[350175363,1737672632594,-416.53947735,0.00016707,2]
[350175364,1737672632603,-500.0,0.00016707,2]
[350175365,1737672632613,-500.0,0.00016707,2]
[350175366,1737672632622,-286.8599867,0.00016707,2]